[Event "Live Chess"]
[Site "Chess.com"]
[Date "2023.05.20"]
[Round "-"]
[White "Lewstar1"]
[Black "chrisbradgate"]
[Result "0-1"]
[WhiteElo "451"]
[BlackElo "848"]
[TimeControl "300"]
[EndTime "13:21:26 PDT"]
[Termination "chrisbradgate won on time"]

1. e4 {[%clk 0:04:53.4]} 1... e5 {[%clk 0:04:58.7]} 2. Nf3 {[%clk 0:04:49.6]}
2... Nc6 {[%clk 0:04:57.8]} 3. Nc3 {[%clk 0:04:47.7]} 3... Bb4 {[%clk
0:04:55.2]} 4. Bc4 {[%clk 0:04:42.9]} 4... h6 {[%clk 0:04:51.3]} 5. d3 {[%clk
0:04:40.9]} 5... Bxc3+ {[%clk 0:04:49.6]} 6. bxc3 {[%clk 0:04:38.3]} 6... f6
{[%clk 0:04:48.2]} 7. O-O {[%clk 0:04:35.2]} 7... d6 {[%clk 0:04:47.1]} 8. d4
{[%clk 0:04:33.2]} 8... Qe7 {[%clk 0:04:37.5]} 9. d5 {[%clk 0:04:28]} 9... Na5
{[%clk 0:04:33]} 10. Bb5+ {[%clk 0:04:20.2]} 10... Kf8 {[%clk 0:04:22.4]} 11.
Ba3 {[%clk 0:04:07.3]} 11... Bd7 {[%clk 0:04:20.9]} 12. Bxd7 {[%clk 0:03:52.1]}
12... Qxd7 {[%clk 0:04:19.7]} 13. Bb4 {[%clk 0:03:35.4]} 13... b6 {[%clk
0:04:13.3]} 14. Bxa5 {[%clk 0:03:21.7]} 14... bxa5 {[%clk 0:04:12]} 15. Rb1
{[%clk 0:03:17.5]} 15... Qc8 {[%clk 0:04:05.7]} 16. g3 {[%clk 0:03:00.2]} 16...
Ne7 {[%clk 0:04:00.9]} 17. Nh4 {[%clk 0:02:55.5]} 17... Kf7 {[%clk 0:03:54]} 18.
a4 {[%clk 0:02:48.5]} 18... Ng6 {[%clk 0:03:49.5]} 19. Nxg6 {[%clk 0:02:36.1]}
19... Kxg6 {[%clk 0:03:46.7]} 20. Kh1 {[%clk 0:02:10.3]} 20... Qd7 {[%clk
0:03:36.1]} 21. Rb5 {[%clk 0:01:26.8]} 21... Qh3 {[%clk 0:03:11.4]} 22. Rxa5
{[%clk 0:01:21.1]} 22... Rhb8 {[%clk 0:03:04.5]} 23. Rb5 {[%clk 0:01:12.3]}
23... Rxb5 {[%clk 0:02:59.9]} 24. axb5 {[%clk 0:01:12.2]} 24... Rb8 {[%clk
0:02:59.1]} 25. c4 {[%clk 0:01:03.4]} 25... Ra8 {[%clk 0:02:32.4]} 26. Rg1
{[%clk 0:00:54.2]} 26... a6 {[%clk 0:02:25.6]} 27. bxa6 {[%clk 0:00:51.5]} 27...
Rxa6 {[%clk 0:02:24.7]} 28. Qd3 {[%clk 0:00:48.1]} 28... Ra2 {[%clk 0:01:57.4]}
29. g4 {[%clk 0:00:28.5]} 29... Qxd3 {[%clk 0:01:53.7]} 30. cxd3 {[%clk
0:00:26.4]} 30... Rxf2 {[%clk 0:01:39.2]} 31. Rg2 {[%clk 0:00:23.9]} 31... Rxg2
{[%clk 0:01:31.7]} 32. Kxg2 {[%clk 0:00:23.8]} 32... Kf7 {[%clk 0:01:27.5]} 33.
Kf3 {[%clk 0:00:23.7]} 33... Ke7 {[%clk 0:01:26.1]} 34. h4 {[%clk 0:00:21.1]}
34... Kd7 {[%clk 0:01:22.7]} 35. Kg3 {[%clk 0:00:16.5]} 35... c6 {[%clk
0:01:21.2]} 36. Kf3 {[%clk 0:00:16.4]} 36... c5 {[%clk 0:01:15.2]} 37. Kg3
{[%clk 0:00:13.3]} 37... Ke7 {[%clk 0:01:13.9]} 38. Kf3 {[%clk 0:00:12.6]} 38...
Kf7 {[%clk 0:01:11.9]} 39. Kg3 {[%clk 0:00:12.5]} 39... Ke8 {[%clk 0:01:10.5]}
40. Kf3 {[%clk 0:00:12.4]} 40... Kd7 {[%clk 0:01:09.4]} 41. Kg3 {[%clk
0:00:10.6]} 41... Kc7 {[%clk 0:01:08.8]} 42. Kf3 {[%clk 0:00:10.3]} 42... Kb6
{[%clk 0:01:07.9]} 43. Kg3 {[%clk 0:00:10.2]} 43... Ka5 {[%clk 0:01:07]} 44. Kf3
{[%clk 0:00:10.1]} 44... Kb4 {[%clk 0:01:06.1]} 45. Kg3 {[%clk 0:00:10]} 45...
Kc3 {[%clk 0:01:05.2]} 46. g5 {[%clk 0:00:09.9]} 46... fxg5 {[%clk 0:01:03.4]}
47. hxg5 {[%clk 0:00:09.8]} 47... hxg5 {[%clk 0:01:01.6]} 48. Kg4 {[%clk
0:00:08.7]} 48... Kxd3 {[%clk 0:01:00.4]} 49. Kxg5 {[%clk 0:00:08.2]} 49... Kxe4
{[%clk 0:00:59.4]} 50. Kg6 {[%clk 0:00:07.5]} 50... Kd4 {[%clk 0:00:58.5]} 51.
Kxg7 {[%clk 0:00:07.4]} 51... Kxc4 {[%clk 0:00:56.1]} 52. Kf6 {[%clk 0:00:07.3]}
52... Kd4 {[%clk 0:00:54.9]} 53. Ke6 {[%clk 0:00:07.2]} 53... c4 {[%clk
0:00:53.4]} 54. Kxd6 {[%clk 0:00:06.6]} 54... c3 {[%clk 0:00:52]} 55. Kc6 {[%clk
0:00:05.8]} 55... c2 {[%clk 0:00:50.3]} 56. d6 {[%clk 0:00:05.3]} 56... c1=Q+
{[%clk 0:00:47.7]} 57. Kd7 {[%clk 0:00:05]} 57... Kd5 {[%clk 0:00:45]} 58. Ke7
{[%clk 0:00:03.1]} 58... Qg5+ {[%clk 0:00:41.2]} 59. Kd7 {[%clk 0:00:01.6]}
59... Qg7+ {[%clk 0:00:38.7]} 60. Kc8 {[%clk 0:00:00.7]} 60... Qg8+ {[%clk
0:00:37.6]} 0-1

[Event "Live Chess"]
[Site "Chess.com"]
[Date "2023.05.20"]
[Round "-"]
[White "djw60"]
[Black "Tushinskiy"]
[Result "1-0"]
[WhiteElo "2130"]
[BlackElo "2094"]
[TimeControl "300"]
[EndTime "13:21:28 PDT"]
[Termination "djw60 won by resignation"]

1. b3 {[%clk 0:04:56.8]} 1... d5 {[%clk 0:04:58.2]} 2. Bb2 {[%clk 0:04:55.4]}
2... c6 {[%clk 0:04:58.1]} 3. Nf3 {[%clk 0:04:52.9]} 3... Nf6 {[%clk 0:04:48.7]}
4. c4 {[%clk 0:04:49.6]} 4... e6 {[%clk 0:04:47.3]} 5. g3 {[%clk 0:04:47.4]}
5... Bd6 {[%clk 0:04:44.5]} 6. Bg2 {[%clk 0:04:46.3]} 6... O-O {[%clk
0:04:41.1]} 7. O-O {[%clk 0:04:44.8]} 7... Qe7 {[%clk 0:04:35.6]} 8. d4 {[%clk
0:04:42.9]} 8... Nbd7 {[%clk 0:04:34.1]} 9. Nc3 {[%clk 0:04:41.2]} 9... Rd8
{[%clk 0:04:28.6]} 10. Qc2 {[%clk 0:04:36.2]} 10... dxc4 {[%clk 0:04:27]} 11.
bxc4 {[%clk 0:04:34.5]} 11... e5 {[%clk 0:04:22.4]} 12. e3 {[%clk 0:04:30.8]}
12... Re8 {[%clk 0:04:07]} 13. a4 {[%clk 0:04:22.6]} 13... a6 {[%clk 0:04:03.4]}
14. a5 {[%clk 0:04:20.9]} 14... h6 {[%clk 0:03:59.9]} 15. Na4 {[%clk 0:04:12.1]}
15... c5 {[%clk 0:03:50.7]} 16. d5 {[%clk 0:04:07.4]} 16... e4 {[%clk 0:03:42]}
17. Nd2 {[%clk 0:04:03.6]} 17... Nf8 {[%clk 0:03:40.5]} 18. Nb6 {[%clk
0:03:59.5]} 18... Rb8 {[%clk 0:03:39]} 19. Nxc8 {[%clk 0:03:55.4]} 19... Rbxc8
{[%clk 0:03:37.7]} 20. Bc3 {[%clk 0:03:52.7]} 20... Ng6 {[%clk 0:03:30.7]} 21.
Rab1 {[%clk 0:03:49.8]} 21... Rc7 {[%clk 0:03:28.5]} 22. Rb6 {[%clk 0:03:47.4]}
22... Be5 {[%clk 0:03:24.4]} 23. Nxe4 {[%clk 0:03:02.2]} 23... Bxc3 {[%clk
0:03:15.4]} 24. Nxc3 {[%clk 0:02:58.2]} 24... Rd7 {[%clk 0:03:10.1]} 25. e4
{[%clk 0:02:44.2]} 25... Ne5 {[%clk 0:03:07.9]} 26. Qe2 {[%clk 0:02:40.8]} 26...
Rdd8 {[%clk 0:03:02.1]} 27. Rfb1 {[%clk 0:02:35.5]} 27... Rb8 {[%clk 0:02:57.7]}
28. h3 {[%clk 0:02:33]} 28... Qd8 {[%clk 0:02:52.4]} 29. f4 {[%clk 0:02:29.6]}
29... Ned7 {[%clk 0:02:51.6]} 30. e5 {[%clk 0:02:21.4]} 30... Nxb6 {[%clk
0:02:49.2]} 31. axb6 {[%clk 0:02:17.9]} 31... Nd7 {[%clk 0:02:45.8]} 32. Qb2
{[%clk 0:02:11.1]} 32... Nf8 {[%clk 0:02:34.6]} 33. Ne4 {[%clk 0:02:06.8]} 33...
Nd7 {[%clk 0:02:24.2]} 34. Kh2 {[%clk 0:01:59.1]} 34... Qe7 {[%clk 0:02:17.7]}
35. h4 {[%clk 0:01:51.2]} 35... f5 {[%clk 0:02:11.8]} 36. Nd6 {[%clk 0:01:48.6]}
36... Rf8 {[%clk 0:02:09.5]} 37. Qc2 {[%clk 0:01:41.5]} 37... g6 {[%clk
0:02:07.9]} 38. h5 {[%clk 0:01:37.8]} 38... g5 {[%clk 0:01:50.7]} 39. Nxf5
{[%clk 0:01:32.6]} 39... Qh7 {[%clk 0:01:44.3]} 40. Be4 {[%clk 0:01:31.5]} 40...
gxf4 {[%clk 0:01:43.3]} 41. gxf4 {[%clk 0:01:29.8]} 41... Kh8 {[%clk 0:01:37.7]}
42. Rg1 {[%clk 0:01:16.5]} 42... Qf7 {[%clk 0:01:34.1]} 43. Rg6 {[%clk
0:01:07.3]} 43... Nf6 {[%clk 0:01:13.1]} 44. exf6 {[%clk 0:01:01.6]} 1-0

[Event "Live Chess"]
[Site "Chess.com"]
[Date "2023.05.20"]
[Round "-"]
[White "anatoliy10912"]
[Black "whitedjohn"]
[Result "0-1"]
[WhiteElo "1550"]
[BlackElo "1651"]
[TimeControl "300"]
[EndTime "13:21:30 PDT"]
[Termination "whitedjohn won by resignation"]

1. e4 {[%clk 0:04:58.9]} 1... Nf6 {[%clk 0:04:54.4]} 2. e5 {[%clk 0:04:57.9]}
2... Nd5 {[%clk 0:04:52.2]} 3. d4 {[%clk 0:04:57.3]} 3... d6 {[%clk 0:04:50.1]}
4. c4 {[%clk 0:04:56.3]} 4... Nb6 {[%clk 0:04:48.7]} 5. exd6 {[%clk 0:04:54.1]}
5... exd6 {[%clk 0:04:46.4]} 6. Nc3 {[%clk 0:04:53.8]} 6... Be7 {[%clk
0:04:43.6]} 7. Nf3 {[%clk 0:04:52.2]} 7... Bg4 {[%clk 0:04:39.9]} 8. h3 {[%clk
0:04:50.5]} 8... Bh5 {[%clk 0:04:36.5]} 9. Bd3 {[%clk 0:04:47]} 9... O-O {[%clk
0:04:34.6]} 10. O-O {[%clk 0:04:45.8]} 10... Nc6 {[%clk 0:04:30.9]} 11. d5
{[%clk 0:04:44.2]} 11... Bxf3 {[%clk 0:04:26.7]} 12. Qxf3 {[%clk 0:04:41]} 12...
Ne5 {[%clk 0:04:26.3]} 13. Qd1 {[%clk 0:04:39.4]} 13... Nexc4 {[%clk 0:04:23.5]}
14. Qc2 {[%clk 0:04:35.9]} 14... h6 {[%clk 0:04:15.5]} 15. Bxc4 {[%clk
0:04:33.8]} 15... Nxc4 {[%clk 0:04:12.5]} 16. Re1 {[%clk 0:04:32.3]} 16... Nb6
{[%clk 0:04:06.1]} 17. Nb5 {[%clk 0:04:26.4]} 17... c6 {[%clk 0:03:57.5]} 18.
dxc6 {[%clk 0:04:25.1]} 18... bxc6 {[%clk 0:03:55.1]} 19. Qxc6 {[%clk
0:04:23.8]} 19... Rc8 {[%clk 0:03:48.5]} 20. Qf3 {[%clk 0:04:22.5]} 20... d5
{[%clk 0:03:41.6]} 21. Qg4 {[%clk 0:04:15.3]} 21... Kh8 {[%clk 0:03:34.4]} 22.
Be3 {[%clk 0:04:05.5]} 22... a6 {[%clk 0:03:26.7]} 23. Bxb6 {[%clk 0:03:41.3]}
23... Qxb6 {[%clk 0:03:21.4]} 24. Rxe7 {[%clk 0:03:40.4]} 24... Qxb5 {[%clk
0:03:19.1]} 25. Rxf7 {[%clk 0:03:39.6]} 25... Rxf7 {[%clk 0:03:08.2]} 26. Qxc8+
{[%clk 0:03:38.1]} 26... Kh7 {[%clk 0:03:06.8]} 27. Qc2+ {[%clk 0:03:35.8]}
27... g6 {[%clk 0:03:03.8]} 28. Rd1 {[%clk 0:03:34.3]} 28... Rb7 {[%clk
0:02:48]} 29. b3 {[%clk 0:03:28.5]} 29... a5 {[%clk 0:02:40.5]} 30. Qd3 {[%clk
0:03:20.7]} 30... Qxd3 {[%clk 0:02:33]} 31. Rxd3 {[%clk 0:03:20.6]} 31... Rd7
{[%clk 0:02:31.2]} 32. Kf1 {[%clk 0:03:18.9]} 32... Kg7 {[%clk 0:02:30.4]} 33.
Ke2 {[%clk 0:03:16.6]} 33... Kf6 {[%clk 0:02:29.8]} 34. Ke3 {[%clk 0:03:15.9]}
34... Ke5 {[%clk 0:02:28.1]} 35. f4+ {[%clk 0:03:13.2]} 35... Ke6 {[%clk
0:02:22.3]} 36. Kd4 {[%clk 0:03:11]} 36... Kd6 {[%clk 0:02:16.8]} 37. Rc3 {[%clk
0:03:03.3]} 37... Re7 {[%clk 0:02:11.8]} 38. Rc5 {[%clk 0:02:58.6]} 38... Re4+
{[%clk 0:02:08.7]} 39. Kd3 {[%clk 0:02:53.1]} 39... Kxc5 {[%clk 0:02:07.8]} 0-1

[Event "Live Chess"]
[Site "Chess.com"]
[Date "2023.05.20"]
[Round "-"]
[White "LiamClery2020"]
[Black "smoggyrabbit"]
[Result "1-0"]
[WhiteElo "2081"]
[BlackElo "1669"]
[TimeControl "300"]
[EndTime "13:21:37 PDT"]
[Termination "LiamClery2020 won on time"]

1. e4 {[%clk 0:04:59.3]} 1... e6 {[%clk 0:04:58.4]} 2. d4 {[%clk 0:04:57.8]}
2... d5 {[%clk 0:04:57.5]} 3. Nd2 {[%clk 0:04:57.4]} 3... c5 {[%clk 0:04:55.6]}
4. c3 {[%clk 0:04:56]} 4... cxd4 {[%clk 0:04:50.5]} 5. cxd4 {[%clk 0:04:55]}
5... dxe4 {[%clk 0:04:49.4]} 6. Nxe4 {[%clk 0:04:54.9]} 6... Nc6 {[%clk
0:04:48.1]} 7. Nf3 {[%clk 0:04:54.1]} 7... Bb4+ {[%clk 0:04:39.5]} 8. Bd2 {[%clk
0:04:52.9]} 8... Bxd2+ {[%clk 0:04:38]} 9. Qxd2 {[%clk 0:04:52.8]} 9... Nf6
{[%clk 0:04:35.3]} 10. Nxf6+ {[%clk 0:04:50]} 10... Qxf6 {[%clk 0:04:34.3]} 11.
Bb5 {[%clk 0:04:49.5]} 11... Bd7 {[%clk 0:04:24.5]} 12. O-O {[%clk 0:04:48.2]}
12... O-O {[%clk 0:04:21.1]} 13. Rfe1 {[%clk 0:04:46.5]} 13... a6 {[%clk
0:04:15.9]} 14. Ba4 {[%clk 0:04:44.8]} 14... Rfd8 {[%clk 0:03:51.4]} 15. Rac1
{[%clk 0:04:41.4]} 15... Be8 {[%clk 0:03:39.9]} 16. Bxc6 {[%clk 0:04:36.5]}
16... Bxc6 {[%clk 0:03:38.2]} 17. Ne5 {[%clk 0:04:34]} 17... Bd5 {[%clk
0:03:26.7]} 18. Rc7 {[%clk 0:04:29]} 18... Rac8 {[%clk 0:03:10.4]} 19. Rxf7
{[%clk 0:04:25.1]} 19... Qh4 {[%clk 0:03:02.1]} 20. Qb4 {[%clk 0:04:13.9]} 20...
Qg5 {[%clk 0:02:32.7]} 21. f3 {[%clk 0:04:06.1]} 21... Rc2 {[%clk 0:01:47.7]}
22. g3 {[%clk 0:03:46.5]} 22... Rdc8 {[%clk 0:01:20.8]} 23. Qe7 {[%clk
0:03:37.4]} 23... Qxe7 {[%clk 0:00:59.1]} 24. Rxe7 {[%clk 0:03:37.3]} 24... Rxb2
{[%clk 0:00:56.9]} 25. Nd3 {[%clk 0:03:32.5]} 25... Rxa2 {[%clk 0:00:51.6]} 26.
Nb4 {[%clk 0:03:29.7]} 26... Rb2 {[%clk 0:00:43.7]} 27. Nxd5 {[%clk 0:03:26]}
27... exd5 {[%clk 0:00:43.6]} 28. Re8+ {[%clk 0:03:25.5]} 28... Rxe8 {[%clk
0:00:41.8]} 29. Rxe8+ {[%clk 0:03:25.4]} 29... Kf7 {[%clk 0:00:41.1]} 30. Rc8
{[%clk 0:03:25.1]} 30... b5 {[%clk 0:00:27.6]} 31. Ra8 {[%clk 0:03:20.6]} 31...
b4 {[%clk 0:00:19.4]} 32. Rxa6 {[%clk 0:03:19.3]} 32... b3 {[%clk 0:00:18.5]}
33. Rb6 {[%clk 0:03:18.9]} 33... Rb1+ {[%clk 0:00:17.5]} 34. Kg2 {[%clk
0:03:17.7]} 34... b2 {[%clk 0:00:16.8]} 35. Rb7+ {[%clk 0:03:17]} 35... Ke6
{[%clk 0:00:14.9]} 36. Rb6+ {[%clk 0:03:16.5]} 36... Kd7 {[%clk 0:00:12.4]} 37.
Rb3 {[%clk 0:03:14.1]} 37... Kc6 {[%clk 0:00:09.8]} 38. f4 {[%clk 0:03:12.9]}
38... Kd6 {[%clk 0:00:06.7]} 39. g4 {[%clk 0:03:11]} 39... Ke6 {[%clk
0:00:06.1]} 40. h3 {[%clk 0:03:10.4]} 40... Kf6 {[%clk 0:00:05.3]} 41. f5 {[%clk
0:03:09.7]} 41... g6 {[%clk 0:00:03.9]} 42. Rb6+ {[%clk 0:03:08.2]} 42... Kg5
{[%clk 0:00:03]} 43. f6 {[%clk 0:03:07.5]} 43... Kf4 {[%clk 0:00:00.5]} 44. f7
{[%clk 0:03:05.5]} 1-0

[Event "Live Chess"]
[Site "Chess.com"]
[Date "2023.05.20"]
[Round "-"]
[White "Reggie016"]
[Black "ElectricFalcon"]
[Result "0-1"]
[WhiteElo "1069"]
[BlackElo "1080"]
[TimeControl "300"]
[EndTime "13:21:37 PDT"]
[Termination "ElectricFalcon won by resignation"]

1. e4 {[%clk 0:04:57.9]} 1... e5 {[%clk 0:04:58]} 2. Nc3 {[%clk 0:04:56.9]} 2...
Nc6 {[%clk 0:04:57.9]} 3. Bc4 {[%clk 0:04:55.6]} 3... Nf6 {[%clk 0:04:57.8]} 4.
d3 {[%clk 0:04:53.9]} 4... Bc5 {[%clk 0:04:57.7]} 5. Na4 {[%clk 0:04:51.7]} 5...
Be7 {[%clk 0:04:55.2]} 6. Nc3 {[%clk 0:04:50.3]} 6... O-O {[%clk 0:04:48.8]} 7.
Nge2 {[%clk 0:04:50]} 7... Bb4 {[%clk 0:04:42.9]} 8. Bd2 {[%clk 0:04:48.4]} 8...
Bxc3 {[%clk 0:04:41]} 9. Bxc3 {[%clk 0:04:47.5]} 9... d6 {[%clk 0:04:40.5]} 10.
O-O {[%clk 0:04:46]} 10... Bg4 {[%clk 0:04:38.8]} 11. f4 {[%clk 0:04:43.1]}
11... exf4 {[%clk 0:04:35.9]} 12. Rxf4 {[%clk 0:04:42.2]} 12... Bxe2 {[%clk
0:04:34.7]} 13. Qxe2 {[%clk 0:04:40.4]} 13... d5 {[%clk 0:04:25.3]} 14. Bxf6
{[%clk 0:04:29.2]} 14... gxf6 {[%clk 0:04:22.1]} 15. Bxd5 {[%clk 0:04:22.1]}
15... Nd4 {[%clk 0:04:19.8]} 16. Qg4+ {[%clk 0:04:17.1]} 16... Kh8 {[%clk
0:04:17.5]} 17. Raf1 {[%clk 0:04:02.9]} 17... Rg8 {[%clk 0:04:10]} 18. Qf5
{[%clk 0:03:47.7]} 18... Nxf5 {[%clk 0:03:57.8]} 0-1

[Event "Live Chess"]
[Site "Chess.com"]
[Date "2023.05.20"]
[Round "-"]
[White "birdseed45"]
[Black "JanMur7"]
[Result "0-1"]
[WhiteElo "1879"]
[BlackElo "1968"]
[TimeControl "300"]
[EndTime "13:21:47 PDT"]
[Termination "JanMur7 won by checkmate"]

1. e4 {[%clk 0:04:56.3]} 1... e5 {[%clk 0:04:58.4]} 2. Nf3 {[%clk 0:04:54.4]}
2... Nc6 {[%clk 0:04:57]} 3. Bb5 {[%clk 0:04:53.8]} 3... Nf6 {[%clk 0:04:56]} 4.
O-O {[%clk 0:04:51.5]} 4... Nxe4 {[%clk 0:04:54.2]} 5. Re1 {[%clk 0:04:50.6]}
5... Nd6 {[%clk 0:04:52.5]} 6. Bxc6 {[%clk 0:04:49.9]} 6... dxc6 {[%clk
0:04:52.4]} 7. Nxe5 {[%clk 0:04:48.9]} 7... Be7 {[%clk 0:04:51.9]} 8. d4 {[%clk
0:04:47.2]} 8... O-O {[%clk 0:04:51.3]} 9. Nd2 {[%clk 0:04:43.9]} 9... Bf6
{[%clk 0:04:50.3]} 10. Ndf3 {[%clk 0:04:42.3]} 10... Nf5 {[%clk 0:04:49.4]} 11.
c3 {[%clk 0:04:40.5]} 11... Re8 {[%clk 0:04:47.1]} 12. Bf4 {[%clk 0:04:37.8]}
12... Be6 {[%clk 0:04:24.8]} 13. h3 {[%clk 0:04:28.3]} 13... Nd6 {[%clk
0:03:53.8]} 14. Qc2 {[%clk 0:04:19.9]} 14... Bf5 {[%clk 0:03:41.1]} 15. Qb3
{[%clk 0:04:16.5]} 15... Be6 {[%clk 0:03:37.4]} 16. c4 {[%clk 0:04:10.1]} 16...
Bxe5 {[%clk 0:03:30.8]} 17. Nxe5 {[%clk 0:04:01.1]} 17... f6 {[%clk 0:03:23.7]}
18. Nf3 {[%clk 0:03:44.5]} 18... Bxc4 {[%clk 0:03:10.3]} 19. Qb4 {[%clk
0:03:41.3]} 19... Bd5 {[%clk 0:03:02]} 20. Rxe8+ {[%clk 0:03:33.1]} 20... Qxe8
{[%clk 0:02:59.5]} 21. Bxd6 {[%clk 0:03:27.9]} 21... cxd6 {[%clk 0:02:59.4]} 22.
Qxd6 {[%clk 0:03:18.1]} 22... Bxf3 {[%clk 0:02:56]} 23. gxf3 {[%clk 0:03:18]}
23... Qg6+ {[%clk 0:02:44.7]} 24. Qg3 {[%clk 0:03:13.3]} 24... Qxg3+ {[%clk
0:02:37.6]} 25. fxg3 {[%clk 0:03:13.2]} 25... Rd8 {[%clk 0:02:36.9]} 26. Rd1
{[%clk 0:03:10.4]} 26... Kf7 {[%clk 0:02:32]} 27. Kf2 {[%clk 0:03:08]} 27... Ke6
{[%clk 0:02:25.4]} 28. Ke3 {[%clk 0:03:06.9]} 28... Kd5 {[%clk 0:02:24.5]} 29.
Rc1 {[%clk 0:03:04.6]} 29... b6 {[%clk 0:02:22.6]} 30. a4 {[%clk 0:02:58.7]}
30... a5 {[%clk 0:02:14.7]} 31. g4 {[%clk 0:02:54.8]} 31... g5 {[%clk
0:02:11.5]} 32. f4 {[%clk 0:02:50.6]} 32... Re8+ {[%clk 0:02:09.2]} 33. Kf3
{[%clk 0:02:47.7]} 33... Re4 {[%clk 0:02:03.6]} 34. fxg5 {[%clk 0:02:42.6]}
34... fxg5 {[%clk 0:02:03.5]} 35. Rh1 {[%clk 0:02:20]} 35... Rxd4 {[%clk
0:01:55.5]} 36. h4 {[%clk 0:02:19]} 36... Rd3+ {[%clk 0:01:37.3]} 37. Ke2 {[%clk
0:02:16.3]} 37... Rg3 {[%clk 0:01:34.9]} 38. hxg5 {[%clk 0:02:09.5]} 38... Rxg4
{[%clk 0:01:32.5]} 39. Rxh7 {[%clk 0:02:07]} 39... Rxg5 {[%clk 0:01:30.9]} 40.
Kd3 {[%clk 0:02:04.7]} 40... Rg2 {[%clk 0:01:23.3]} 41. Kc3 {[%clk 0:02:03.1]}
41... Rg3+ {[%clk 0:01:17]} 42. Kc2 {[%clk 0:02:01.2]} 42... Rg4 {[%clk
0:01:16.6]} 43. Kb3 {[%clk 0:01:59.6]} 43... Rg3+ {[%clk 0:01:10.7]} 44. Kc2
{[%clk 0:01:58.1]} 44... Rg5 {[%clk 0:01:07.1]} 45. Kb3 {[%clk 0:01:55.8]} 45...
Kc5 {[%clk 0:01:05.7]} 46. Rf7 {[%clk 0:01:51.5]} 46... Rg3+ {[%clk 0:00:59.6]}
47. Ka2 {[%clk 0:01:48.9]} 47... Rd3 {[%clk 0:00:54.5]} 48. Rf5+ {[%clk
0:01:46.5]} 48... Rd5 {[%clk 0:00:52.1]} 49. Rf4 {[%clk 0:01:45]} 49... Rd4
{[%clk 0:00:52]} 50. Rf5+ {[%clk 0:01:43.6]} 50... Kb4 {[%clk 0:00:50.8]} 51.
Rf6 {[%clk 0:01:36.1]} 51... Kxa4 {[%clk 0:00:40.2]} 52. Rxc6 {[%clk 0:01:33.7]}
52... b5 {[%clk 0:00:39]} 53. Rc3 {[%clk 0:01:30.8]} 53... Rd2 {[%clk 0:00:34]}
54. Ra3+ {[%clk 0:01:21]} 54... Kb4 {[%clk 0:00:32.2]} 55. Rb3+ {[%clk
0:01:20.4]} 55... Kc5 {[%clk 0:00:31.1]} 56. Rc3+ {[%clk 0:01:18.8]} 56... Kb6
{[%clk 0:00:29.2]} 57. Rc8 {[%clk 0:01:17.2]} 57... a4 {[%clk 0:00:26.6]} 58.
Rb8+ {[%clk 0:01:16.1]} 58... Ka5 {[%clk 0:00:25.4]} 59. Re8 {[%clk 0:01:08.8]}
59... Rh2 {[%clk 0:00:21.5]} 60. Re5 {[%clk 0:01:06.5]} 60... Rh4 {[%clk
0:00:20.1]} 61. Re6 {[%clk 0:01:03.7]} 61... Kb4 {[%clk 0:00:18.5]} 62. Re5
{[%clk 0:01:02]} 62... Rh2 {[%clk 0:00:17.3]} 63. Re4+ {[%clk 0:01:00.7]} 63...
Ka5 {[%clk 0:00:16.8]} 64. Re8 {[%clk 0:00:59.1]} 64... Rh6 {[%clk 0:00:15.7]}
65. Re5 {[%clk 0:00:57.8]} 65... Ra6 {[%clk 0:00:15.6]} 66. Rg5 {[%clk 0:00:56]}
66... Rb6 {[%clk 0:00:15]} 67. Rg4 {[%clk 0:00:54.8]} 67... Ra6 {[%clk
0:00:14.9]} 68. Ka3 {[%clk 0:00:53.3]} 68... Rh6 {[%clk 0:00:13]} 69. Rg7 {[%clk
0:00:51.5]} 69... Rh1 {[%clk 0:00:11.6]} 70. Ra7+ {[%clk 0:00:49.8]} 70... Kb6
{[%clk 0:00:10.4]} 71. Re7 {[%clk 0:00:49.3]} 71... Ka5 {[%clk 0:00:09.5]} 72.
Re5 {[%clk 0:00:46.2]} 72... Ra1# {[%clk 0:00:07.8]} 0-1

[Event "Live Chess"]
[Site "Chess.com"]
[Date "2023.05.20"]
[Round "-"]
[White "Missedidea"]
[Black "Greenbecker"]
[Result "1-0"]
[WhiteElo "1814"]
[BlackElo "1620"]
[TimeControl "300"]
[EndTime "13:22:08 PDT"]
[Termination "Missedidea won by checkmate"]

1. d4 {[%clk 0:04:58.4]} 1... d5 {[%clk 0:04:58.8]} 2. c4 {[%clk 0:04:56.4]}
2... e6 {[%clk 0:04:57.4]} 3. Nc3 {[%clk 0:04:54.8]} 3... Nf6 {[%clk 0:04:56.6]}
4. Bg5 {[%clk 0:04:53.1]} 4... Be7 {[%clk 0:04:54.6]} 5. e3 {[%clk 0:04:51.8]}
5... O-O {[%clk 0:04:53.7]} 6. Nf3 {[%clk 0:04:50.5]} 6... h6 {[%clk 0:04:52.9]}
7. Bh4 {[%clk 0:04:48.4]} 7... c6 {[%clk 0:04:52]} 8. Rc1 {[%clk 0:04:46.1]}
8... Nbd7 {[%clk 0:04:51]} 9. Bd3 {[%clk 0:04:44.5]} 9... Qa5 {[%clk 0:04:47.8]}
10. O-O {[%clk 0:04:41]} 10... Re8 {[%clk 0:04:46.5]} 11. a3 {[%clk 0:04:31.6]}
11... Qc7 {[%clk 0:04:32.5]} 12. cxd5 {[%clk 0:04:21.8]} 12... Nxd5 {[%clk
0:04:30.5]} 13. Bg3 {[%clk 0:04:05.5]} 13... Nxc3 {[%clk 0:04:25]} 14. Rxc3
{[%clk 0:03:59.1]} 14... Bd6 {[%clk 0:04:22.7]} 15. e4 {[%clk 0:03:53.8]} 15...
Bxg3 {[%clk 0:04:20.1]} 16. hxg3 {[%clk 0:03:51.9]} 16... Nf6 {[%clk 0:04:17]}
17. Ne5 {[%clk 0:03:41.3]} 17... Rd8 {[%clk 0:04:12.5]} 18. Bb1 {[%clk
0:03:36.2]} 18... Qb6 {[%clk 0:04:02.6]} 19. Nc4 {[%clk 0:03:21.7]} 19... Qc7
{[%clk 0:03:43.4]} 20. Re1 {[%clk 0:03:12.2]} 20... b5 {[%clk 0:03:41.8]} 21.
Ne3 {[%clk 0:03:03.7]} 21... Qb6 {[%clk 0:03:36.1]} 22. Qc2 {[%clk 0:02:59]}
22... g6 {[%clk 0:03:16.2]} 23. Rxc6 {[%clk 0:02:52.7]} 23... Qb7 {[%clk
0:03:09.3]} 24. Rc7 {[%clk 0:02:46.1]} 24... Qb6 {[%clk 0:03:05.8]} 25. d5
{[%clk 0:02:37.5]} 25... exd5 {[%clk 0:02:59.4]} 26. exd5 {[%clk 0:02:26.1]}
26... Nxd5 {[%clk 0:02:27.6]} 27. Nxd5 {[%clk 0:02:23.1]} 27... Rxd5 {[%clk
0:02:24.4]} 28. Rxc8+ {[%clk 0:02:20.3]} 28... Kg7 {[%clk 0:02:21.7]} 29. Qc3+
{[%clk 0:02:14.4]} 29... Kh7 {[%clk 0:02:17.4]} 30. Qh8# {[%clk 0:02:11.4]} 1-0

[Event "Live Chess"]
[Site "Chess.com"]
[Date "2023.05.20"]
[Round "-"]
[White "Singapourfeuj"]
[Black "OceanFloater"]
[Result "1-0"]
[WhiteElo "2239"]
[BlackElo "997"]
[TimeControl "300"]
[EndTime "13:22:14 PDT"]
[Termination "Singapourfeuj won by resignation"]

1. d4 {[%clk 0:04:59.5]} 1... c6 {[%clk 0:04:52]} 2. e4 {[%clk 0:04:58.2]} 2...
d5 {[%clk 0:04:50.8]} 3. Nc3 {[%clk 0:04:57.5]} 3... dxe4 {[%clk 0:04:49]} 4. f3
{[%clk 0:04:56.5]} 4... Nf6 {[%clk 0:04:48.7]} 5. fxe4 {[%clk 0:04:55.5]} 5...
Bg4 {[%clk 0:04:43.7]} 6. Nf3 {[%clk 0:04:53.6]} 6... e6 {[%clk 0:04:39.2]} 7.
Be3 {[%clk 0:04:51.7]} 7... c5 {[%clk 0:04:36.4]} 8. d5 {[%clk 0:04:50.5]} 8...
exd5 {[%clk 0:04:34.4]} 9. exd5 {[%clk 0:04:49.6]} 9... Nxd5 {[%clk 0:04:32.1]}
10. Qxd5 {[%clk 0:04:47.3]} 10... Qxd5 {[%clk 0:04:30.5]} 11. Nxd5 {[%clk
0:04:46.1]} 11... Nc6 {[%clk 0:04:28.4]} 12. Nc7+ {[%clk 0:04:45]} 1-0